bitfinex/quotes_BTCUSD_20250226
["timestamp","ask_amount","ask_price","bid_price","bid_amount"]
[1740606475575,0.00012244,84187.0,84173.0,0.0002]
[1740606476386,0.01864729,84184.0,84173.0,0.0002]
[1740606476931,0.178202,84174.0,84173.0,0.0002]
[1740606477371,0.178199,84176.0,84173.0,0.0002]
[1740606477594,0.1782,84175.0,84173.0,0.0002]
[1740606477799,0.178202,84174.0,84173.0,0.0003]
[1740606478618,0.00567087,84188.0,84173.0,0.0003]
[1740606478820,0.178202,84174.0,84173.0,0.0003]
[1740606479856,0.26028122,84174.0,84173.0,0.0003]
[1740606480055,0.258202,84174.0,84173.0,0.0003]
[1740606480274,0.178202,84174.0,84173.0,0.0003]
[1740606480563,0.1802812,84174.0,84173.0,0.0003]
[1740606481344,0.178202,84174.0,84173.0,0.0003]
[1740606482428,0.178202,84174.0,84173.0,0.00755732]
[1740606482850,0.18028121,84174.0,84173.0,0.00755732]
[1740606483271,0.25968121,84174.0,84173.0,0.00755732]
[1740606483591,0.178202,84174.0,84173.0,0.00755732]
[1740606483833,0.00012244,84187.0,84173.0,0.0003]
[1740606484028,0.178202,84174.0,84173.0,0.0003]
[1740606484576,0.1802812,84174.0,84173.0,0.0003]
[1740606484799,0.178202,84174.0,84173.0,0.0003]
[1740606485345,0.178624,84174.0,84173.0,0.0003]
[1740606485496,0.18070324,84174.0,84173.0,0.0003]
[1740606485660,0.178624,84174.0,84173.0,0.0003]
[1740606486532,0.000422,84174.0,84173.0,0.0003]
[1740606486668,0.000422,84174.0,84173.0,0.0518917]
[1740606486871,0.178624,84174.0,84173.0,0.0518917]
[1740606487276,0.000422,84174.0,84173.0,0.0518917]
[1740606487631,0.000422,84174.0,84173.0,0.6049957]
[1740606487807,0.00207838,84219.0,84173.0,0.4267917]
[1740606488008,0.2383912,84197.0,84173.0,0.3752]
[1740606488207,0.0008512,84197.0,84178.0,0.01454085]
[1740606488408,0.0008512,84197.0,84179.0,0.05161561]
[1740606488609,0.0008512,84197.0,84180.0,0.03707476]
[1740606488810,0.178185,84182.0,84181.0,0.03707476]
[1740606488991,0.0008512,84197.0,84182.0,0.01454085]
[1740606489332,0.01864714,84186.0,84184.0,0.01454085]
[1740606489543,0.01864714,84186.0,84179.0,0.3273]
[1740606489712,0.01564714,84186.0,84185.0,0.01454085]
[1740606489913,0.01564714,84186.0,84185.0,0.03708806]
[1740606490178,0.0008516,84194.0,84186.0,0.01454085]
[1740606490416,0.0008516,84194.0,84186.0,0.22980491]
[1740606490606,0.0008516,84194.0,84186.0,0.05162891]
[1740606490746,0.0008516,84194.0,84186.0,0.55710491]
[1740606490949,0.0008516,84194.0,84186.0,1.10490491]
[1740606491151,0.0008516,84194.0,84186.0,1.18889097]
[1740606491571,0.0008516,84194.0,84187.0,0.23961485]
[1740606491762,0.0008516,84194.0,84187.0,0.27670291]
[1740606492136,0.0008516,84194.0,84187.0,1.15180291]
[1740606492418,0.00041233,84217.0,84187.0,0.99429497]
[1740606492622,0.0005347,84217.0,84216.0,0.178113]
[1740606492889,0.0005347,84217.0,84216.0,0.05162891]
[1740606493833,0.0005347,84217.0,84216.0,0.22974191]
[1740606494037,0.0005347,84217.0,84216.0,0.28872191]
[1740606494223,0.00349895,84271.0,84217.0,0.01454085]
[1740606494420,0.00349895,84271.0,84244.0,0.237405]
[1740606494421,0.237358,84261.0,84244.0,0.237405]
[1740606494622,0.01863461,84249.0,84245.0,0.27448806]
[1740606494839,0.01863461,84249.0,84246.0,0.05162891]
[1740606495136,0.178073,84236.0,84225.0,0.01328]
[1740606495269,0.00207727,84257.0,84226.0,0.03692697]
[1740606495481,0.00083046,84259.0,84227.0,0.03692697]
[1740606495482,0.237422,84239.0,84227.0,0.03692697]
[1740606495670,0.178085,84229.0,84228.0,0.03692697]
[1740606495890,0.237475,84220.0,84216.0,0.0457]
[1740606496133,0.237475,84220.0,84199.0,0.5478]
[1740606496134,0.178109,84218.0,84217.0,0.03693651]
[1740606496343,0.23743,84235.0,84204.0,0.03693651]
[1740606496344,0.178136,84205.0,84204.0,0.03693651]
[1740606496543,0.178136,84205.0,84203.0,0.00916511]
[1740606496754,0.178136,84205.0,84204.0,0.03693915]
[1740606496949,0.178136,84205.0,84204.0,0.00012237]
[1740606498160,0.18021436,84205.0,84204.0,0.00012237]
[1740606498750,0.20674751,84205.0,84204.0,0.00012237]
[1740606499341,0.55369554,84205.0,84204.0,0.00012237]
[1740606499558,0.52508403,84205.0,84204.0,0.00012237]
[1740606499763,0.52508403,84205.0,84204.0,0.00022237]
[1740606500280,0.62009083,84205.0,84204.0,0.00022237]
[1740606501949,0.6014428,84205.0,84204.0,0.00022237]
[1740606502807,0.4233068,84205.0,84204.0,0.00022237]
[1740606502950,0.37280197,84205.0,84204.0,0.00022237]
[1740606503152,0.55093797,84205.0,84204.0,0.00022237]
[1740606503664,0.2731428,84205.0,84204.0,0.00022237]
[1740606504908,0.29178921,84205.0,84204.0,0.00022237]
[1740606505342,0.31920522,84205.0,84204.0,0.00022237]
[1740606505496,0.178157,84195.0,84194.0,0.10637634]
[1740606506075,0.178174,84187.0,84186.0,0.10637634]
[1740606507646,0.18025297,84187.0,84186.0,0.10647634]
[1740606507848,0.178174,84187.0,84186.0,0.10647634]
[1740606508208,0.180253,84187.0,84186.0,0.10647634]
[1740606508411,0.178174,84187.0,84186.0,0.0001]
[1740606508655,0.18025316,84187.0,84186.0,0.0001]
[1740606508906,0.178174,84187.0,84186.0,0.0001]
[1740606509494,0.237534,84199.0,84186.0,0.0001]
[1740606509495,0.178163,84193.0,84186.0,0.0001]
[1740606509698,0.474918,84225.0,84186.0,0.0001]
[1740606509699,0.356187,84226.0,84188.0,0.01454085]
[1740606509898,0.0004217,84218.0,84188.0,0.01454085]
[1740606510215,0.0004217,84218.0,84188.0,0.34184085]
[1740606510419,0.178134,84206.0,84194.0,0.01454085]
[1740606510628,0.0004217,84218.0,84194.0,0.01454085]
[1740606510798,0.0004217,84218.0,84189.0,0.01454085]
[1740606511006,0.00207815,84216.0,84189.0,0.01454085]
[1740606511208,0.17817,84189.0,84188.0,0.3273]
[1740606511389,0.178174,84187.0,84171.0,0.0483]
[1740606512683,0.178174,84187.0,84174.0,0.01454085]
[1740606513156,0.178174,84187.0,84176.0,0.01454085]
[1740606513513,0.178174,84188.0,84177.0,0.01454085]
[1740606513712,0.178174,84187.0,84171.0,0.0483]
[1740606514534,0.18025292,84187.0,84170.0,0.12]
[1740606514894,0.18025292,84187.0,84186.0,0.0002]
[1740606515049,0.18691629,84187.0,84186.0,0.0002]
[1740606515250,0.20691629,84187.0,84186.0,0.0002]
[1740606515463,0.18691629,84187.0,84186.0,0.0002]
[1740606515667,0.178174,84187.0,84186.0,0.0002]
[1740606515986,0.18025321,84187.0,84186.0,0.0002]
[1740606516699,0.178174,84187.0,84186.0,0.0002]
[1740606517201,0.27779517,84215.0,84186.0,0.0002]
[1740606517410,0.178168,84191.0,84186.0,0.0465]
[1740606517620,0.178132,84207.0,84186.0,0.0465]
[1740606517852,0.0004219,84217.0,84186.0,0.0465]
[1740606518064,0.0004219,84217.0,84187.0,0.01454085]
[1740606518292,0.178122,84212.0,84189.0,0.0753]
[1740606518463,0.0004219,84217.0,84205.0,0.01454085]
[1740606518927,0.0004219,84217.0,84207.0,0.01454085]
[1740606519121,0.0004219,84217.0,84210.0,0.01454085]
[1740606519520,0.178126,84210.0,84209.0,0.0488]
[1740606519696,0.175126,84210.0,84209.0,0.0488]
[1740606520016,0.175126,84210.0,84209.0,0.00046305]
[1740606520469,0.237497,84212.0,84209.0,0.00046305]
[1740606520627,0.178126,84210.0,84209.0,0.00046305]
[1740606520828,0.178126,84210.0,84209.0,0.00056305]
[1740606523051,0.19161395,84210.0,84209.0,0.00056305]
[1740606523251,0.178126,84210.0,84209.0,0.00066305]
[1740606526153,0.18020425,84210.0,84209.0,0.00066305]
[1740606526359,0.178126,84210.0,84209.0,0.00066305]
[1740606526559,0.18020445,84210.0,84209.0,0.00066305]
[1740606527499,0.237497,84212.0,84209.0,0.00066305]
[1740606527500,0.18462591,84212.0,84209.0,0.00066305]
[1740606527851,0.0004217,84218.0,84209.0,0.00066305]
[1740606528052,0.178122,84212.0,84209.0,0.00066305]
[1740606528257,0.0004217,84218.0,84209.0,0.04836305]
[1740606528460,0.0004217,84218.0,84216.0,0.01454085]
[1740606529443,0.1785329,84217.0,84216.0,0.01454085]
[1740606529631,0.0004219,84217.0,84209.0,0.04836305]
[1740606530058,0.0004219,84217.0,84210.0,0.01454085]
[1740606530260,0.0004219,84217.0,84209.0,0.04836305]
[1740606530475,0.178126,84210.0,84209.0,0.04836305]
[1740606530779,0.178026,84210.0,84209.0,0.04836305]
[1740606530956,0.178026,84210.0,84209.0,0.00066305]
[1740606531427,0.18010438,84210.0,84209.0,0.00066305]
[1740606531628,0.178026,84210.0,84209.0,0.00066305]
[1740606532384,0.18010446,84210.0,84209.0,0.00066305]
[1740606532540,0.178026,84210.0,84209.0,0.00066305]
[1740606532742,0.18010448,84210.0,84209.0,0.00076305]
[1740606533648,0.20010448,84210.0,84209.0,0.00076305]
[1740606534109,0.29322116,84210.0,84209.0,0.00076305]
[1740606534304,0.296226,84210.0,84209.0,0.00076305]
[1740606535219,0.269466,84210.0,84209.0,0.00076305]
[1740606535451,0.256226,84210.0,84209.0,0.00076305]
[1740606536125,0.178026,84210.0,84209.0,0.00076305]
[1740606536294,0.18010478,84210.0,84209.0,0.00076305]
[1740606537531,0.178174,84187.0,84186.0,0.0010436]
[1740606537736,0.178174,84187.0,84186.0,0.00150778]
[1740606537931,0.18025329,84187.0,84186.0,0.00150778]
[1740606538859,0.22841438,84187.0,84186.0,0.00150778]
[1740606539072,0.22633509,84187.0,84186.0,0.00150778]
[1740606539259,0.22841445,84187.0,84186.0,0.00150778]
[1740606539436,0.2629553,84187.0,84186.0,0.00150778]
[1740606539650,0.44353945,84187.0,84186.0,0.00150778]
[1740606539901,0.33647594,84187.0,84186.0,0.00150778]
[1740606540280,0.33647594,84187.0,84186.0,0.00160778]
[1740606540464,0.23274285,84174.0,84173.0,0.0011438]
[1740606540648,0.23274285,84174.0,84145.0,0.001044]
[1740606540649,0.23274885,84171.0,84170.0,0.04027949]
[1740606540908,0.24766994,84171.0,84170.0,0.04042051]
[1740606541363,0.21312909,84171.0,84170.0,0.04042051]
[1740606541557,0.24844874,84171.0,84170.0,0.04042051]
[1740606541761,0.26090994,84171.0,84170.0,0.04042051]
[1740606541960,0.02115171,84171.0,84170.0,0.04042051]
[1740606542161,0.2210828,84171.0,84170.0,0.04042051]
[1740606542360,0.2210828,84171.0,84145.0,0.001044]
[1740606542361,0.178261,84146.0,84145.0,0.001044]
[1740606542609,0.198261,84146.0,84145.0,0.00145247]
[1740606542899,0.21488251,84146.0,84145.0,0.00145247]
[1740606543825,0.19488251,84146.0,84145.0,0.00145247]
[1740606543956,0.21488251,84146.0,84145.0,0.00145247]
[1740606544360,0.24184974,84146.0,84145.0,0.00145247]
[1740606544567,0.23976908,84146.0,84145.0,0.00145247]
[1740606545002,0.21280185,84146.0,84145.0,0.00145247]
[1740606545205,0.21488252,84146.0,84145.0,0.00155247]
[1740606545418,0.22812252,84146.0,84145.0,0.00155247]
[1740606545620,0.22604185,84146.0,84145.0,0.00155247]
[1740606546111,0.191501,84146.0,84145.0,0.00155247]
[1740606546311,0.19358145,84146.0,84145.0,0.00155247]
[1740606547694,0.30424129,84146.0,84145.0,0.00155247]
[1740606547894,0.31670169,84146.0,84145.0,0.00155247]
[1740606548055,0.21282285,84136.0,84104.0,0.0001]
[1740606548256,0.59519802,84136.0,84104.0,0.0001]
[1740606548457,0.198314,84121.0,84104.0,0.0001]
[1740606548638,0.21493664,84121.0,84104.0,0.0001]
[1740606548835,0.22817664,84121.0,84104.0,0.0001]
[1740606549186,0.198348,84105.0,84104.0,0.0001]
[1740606549485,0.21497067,84105.0,84104.0,0.0001]
[1740606549836,0.22821067,84105.0,84104.0,0.0001]
[1740606550038,0.22612885,84105.0,84104.0,0.0001]
[1740606550441,0.22618697,84105.0,84104.0,0.0001]
[1740606550638,0.33439333,84105.0,84104.0,0.0001]
[1740606551953,0.33439333,84105.0,84104.0,0.0002]
[1740606552157,0.20618697,84105.0,84104.0,0.0002]
[1740606552356,0.21372792,84105.0,84104.0,0.0002]
[1740606552756,0.22826877,84105.0,84104.0,0.0002]
[1740606552957,0.22618697,84105.0,84104.0,0.0002]
[1740606553375,0.17840612,84105.0,84104.0,0.0002]
[1740606553572,0.18048774,84105.0,84104.0,0.0002]
[1740606554201,0.26741881,84105.0,84104.0,0.0002]
[1740606554533,0.36187804,84105.0,84104.0,0.0002]
[1740606555075,0.36187804,84105.0,84104.0,0.0010438]
[1740606555278,0.29494697,84105.0,84104.0,0.0083617]
[1740606557498,0.21294697,84105.0,84104.0,0.0083617]
[1740606557691,0.21502878,84105.0,84104.0,0.0083617]
[1740606557892,0.19502878,84105.0,84104.0,0.0083617]
[1740606558100,0.21502878,84105.0,84104.0,0.0083617]
[1740606558303,0.21502878,84105.0,84071.0,0.0050738]
[1740606558304,0.178354,84102.0,84071.0,0.0050738]
[1740606558501,0.20043607,84102.0,84071.0,0.0050738]
[1740606559561,0.22821692,84102.0,84071.0,0.0050738]
[1740606559892,0.22613485,84102.0,84071.0,0.0050738]
[1740606560089,0.22821684,84102.0,84071.0,0.0050738]
[1740606560509,0.19367599,84102.0,84071.0,0.0050738]
[1740606560632,0.19367599,84102.0,84080.0,0.0814]
[1740606561262,0.18043599,84102.0,84080.0,0.0814]
[1740606561446,0.18043599,84102.0,84101.0,0.0009436]
[1740606562251,0.21497684,84102.0,84101.0,0.0009436]
[1740606563275,0.198382,84089.0,84071.0,0.0050738]
[1740606563482,0.29165267,84089.0,84071.0,0.0050738]
[1740606563653,0.30411125,84089.0,84071.0,0.0050738]
[1740606563854,0.21292285,84089.0,84071.0,0.0050738]
[1740606564195,0.2282449,84089.0,84071.0,0.0050738]
[1740606564793,0.01324,84089.0,84071.0,0.0050738]
[1740606564955,0.01532211,84089.0,84071.0,0.0050738]
[1740606565157,0.19370411,84089.0,84088.0,0.0010446]
[1740606565431,0.28289327,84089.0,84088.0,0.0010446]
[1740606565614,0.28081116,84089.0,84088.0,0.0010446]
[1740606566012,0.191622,84089.0,84088.0,0.0010446]
[1740606566387,0.19370426,84089.0,84088.0,0.0010446]
[1740606567237,0.20824511,84089.0,84088.0,0.0010446]
[1740606574085,0.41003126,84091.0,84088.0,0.0010446]
[1740606574291,0.191622,84089.0,84088.0,0.0010446]
[1740606574592,0.19369118,84089.0,84088.0,0.0010446]
[1740606576029,0.26166375,84089.0,84088.0,0.0010446]
[1740606576188,0.20616285,84089.0,84088.0,0.0010446]
[1740606576407,0.20823203,84089.0,84088.0,0.0010446]
[1740606577129,0.33433203,84089.0,84088.0,0.0010446]
[1740606577340,0.19292285,84089.0,84088.0,0.0010446]
[1740606577495,0.18045118,84089.0,84088.0,0.0010446]
[1740606579213,0.22810599,84089.0,84088.0,0.0010446]
[1740606579388,0.21149596,84089.0,84088.0,0.0010446]
[1740606579697,0.18045118,84089.0,84088.0,0.0010446]
[1740606582995,0.18045118,84089.0,84088.0,0.0490446]
[1740606583193,0.178382,84089.0,84088.0,0.1287446]
[1740606585051,0.18045118,84089.0,84088.0,0.0490446]
[1740606585635,0.178382,84089.0,84088.0,0.0490446]
[1740606586959,0.506682,84089.0,84088.0,0.0490446]
[1740606587636,0.506682,84089.0,84088.0,0.0010446]
[1740606590075,0.52122285,84089.0,84088.0,0.0010446]
[1740606591303,0.506682,84089.0,84088.0,0.0010446]
[1740606591909,0.506682,84089.0,84088.0,0.0210446]
[1740606592522,0.506682,84089.0,84088.0,0.0010446]
[1740606594057,0.62653865,84089.0,84088.0,0.0010446]
[1740606595178,0.506682,84089.0,84088.0,0.0010446]
[1740606596121,0.52535567,84089.0,84088.0,0.0010446]
[1740606596273,0.53989652,84089.0,84088.0,0.0010446]
[1740606600888,0.52535567,84089.0,84088.0,0.0010446]
[1740606601882,0.53989652,84089.0,84088.0,0.0010446]
[1740606602087,0.65975317,84089.0,84088.0,0.0010446]
[1740606602291,0.52122285,84089.0,84088.0,0.0010446]
[1740606602489,0.506682,84089.0,84088.0,0.0010446]
[1740606602756,0.506682,84089.0,84088.0,0.0210446]
[1740606602910,0.178382,84089.0,84088.0,0.0210446]
[1740606603109,0.18045118,84089.0,84088.0,0.0010446]
[1740606603747,0.50875118,84089.0,84088.0,0.0010446]
[1740606603982,0.32503675,84089.0,84088.0,0.0010446]
[1740606604132,0.3835621,84089.0,84088.0,0.0210446]
[1740606604344,0.3835621,84089.0,84088.0,0.0994446]
[1740606604578,0.3835621,84089.0,84088.0,0.0010446]
[1740606605757,0.39810295,84089.0,84088.0,0.0010446]
[1740606605957,0.5093058,84089.0,84088.0,0.0010446]
[1740606606702,0.52798129,84089.0,84088.0,0.0010446]
[1740606607270,0.40223759,84089.0,84088.0,0.0010446]
[1740606607469,0.3835621,84089.0,84088.0,0.0010446]
[1740606607871,0.40564163,84089.0,84088.0,0.0010446]
[1740606608936,0.44096245,84089.0,84088.0,0.0010446]
[1740606609143,0.45963535,84089.0,84088.0,0.0010446]
[1740606609714,0.42431453,84089.0,84088.0,0.0010446]
[1740606610793,0.21913443,84089.0,84088.0,0.0210446]
[1740606611126,0.21913443,84089.0,84088.0,0.1692446]
[1740606611127,0.02207953,84089.0,84088.0,0.1692446]
[1740606611329,0.1788015,84091.0,84090.0,0.02]
[1740606611599,0.1788015,84091.0,84090.0,0.04]
[1740606612747,0.1788015,84091.0,84090.0,0.02]
[1740606612944,0.1788015,84091.0,84090.0,0.04]
[1740606613242,0.0004235,84091.0,84090.0,0.04]
[1740606613416,0.17840612,84105.0,84104.0,0.0682]
[1740606613627,0.178323,84117.0,84116.0,0.02]
[1740606613832,0.0004233,84120.0,84119.0,0.1642]
[1740606614031,0.10602035,84132.0,84131.0,0.04]
[1740606614348,0.52203535,84132.0,84131.0,0.0856]
[1740606614572,0.05602035,84132.0,84131.0,0.0856]
[1740606614696,0.00602035,84132.0,84131.0,0.1645]
[1740606614898,0.415973,84140.0,84139.0,0.04]
[1740606615614,0.178274,84140.0,84139.0,0.04]
[1740606616220,0.383812,84170.0,84169.0,0.02]
[1740606617326,0.383812,84170.0,84169.0,0.02014091]
[1740606618700,0.383812,84170.0,84169.0,0.01904091]
[1740606619615,0.1786319,84170.0,84169.0,0.01904091]
[1740606620419,0.0004219,84170.0,84169.0,0.03904091]
[1740606620623,0.0004219,84170.0,84169.0,0.05358176]
[1740606620832,0.1786319,84170.0,84169.0,0.03904091]
[1740606621396,0.1832418,84190.0,84189.0,0.0389]
[1740606622029,0.0050738,84190.0,84189.0,0.05344085]
[1740606622267,0.1785583,84205.0,84204.0,0.02]
[1740606622413,0.1785583,84205.0,84204.0,0.0389]
[1740606623025,0.0004223,84205.0,84204.0,0.0389]
[1740606623228,0.0004223,84205.0,84204.0,0.23157885]
[1740606623467,0.0004223,84205.0,84204.0,0.05344085]
[1740606623468,0.00083182,84205.0,84204.0,0.05344085]
[1740606623650,0.01947472,84205.0,84204.0,0.05344085]
[1740606624289,0.19761072,84205.0,84204.0,0.05344085]
[1740606624628,0.01947472,84205.0,84204.0,0.23157885]
[1740606624824,0.0004219,84217.0,84216.0,0.217013]
[1740606625026,0.0004219,84217.0,84216.0,0.25321596]
[1740606625201,0.0004219,84217.0,84216.0,0.25155385]
[1740606625766,0.0004217,84218.0,84217.0,0.23155185]
[1740606625999,0.0050738,84223.0,84222.0,0.25154085]
[1740606626243,0.237396,84248.0,84245.0,0.01454085]
[1740606626449,0.178045,84248.0,84247.0,0.02]
[1740606626657,0.178045,84248.0,84247.0,0.0389]
[1740606627257,0.356005,84269.0,84223.0,0.0551]
[1740606627258,0.178049,84246.0,84245.0,0.0189]
[1740606627439,0.178081,84231.0,84230.0,0.0189]
[1740606627635,0.178081,84231.0,84215.0,0.0189]
[1740606627636,0.178113,84216.0,84215.0,0.0189]
[1740606627835,0.178115,84215.0,84214.0,0.0189]
[1740606629424,0.178115,84215.0,84214.0,0.0389]
[1740606629772,0.178115,84215.0,84214.0,0.02]
[1740606630096,0.178115,84215.0,84214.0,0.0389]
[1740606630886,0.1785323,84218.0,84217.0,0.0189]
[1740606631055,0.0004233,84218.0,84181.0,0.079]
[1740606631251,0.3837124,84218.0,84217.0,0.0189]
[1740606631954,0.0004233,84218.0,84217.0,0.05344085]
[1740606632236,0.0004233,84218.0,84217.0,0.05358176]
[1740606633143,0.1785323,84218.0,84217.0,0.05358176]
[1740606633911,0.0004233,84218.0,84217.0,0.07358176]
[1740606634112,0.1785323,84218.0,84217.0,0.05358176]
[1740606634343,0.356094,84248.0,84217.0,0.05358176]
[1740606634344,0.00206918,84239.0,84238.0,0.0389]
[1740606634495,8e-05,84267.0,84248.0,0.07344085]
[1740606634721,0.178007,84266.0,84254.0,0.0589]
[1740606634930,0.178452,84255.0,84254.0,0.05344085]
[1740606635150,0.178452,84255.0,84254.0,0.0389]
[1740606635347,0.2377874,84259.0,84258.0,0.0389]
[1740606635548,0.4158094,84259.0,84258.0,0.0389]
[1740606635768,0.4158094,84259.0,84258.0,0.03904091]
[1740606636967,0.0004224,84259.0,84258.0,0.03904091]
[1740606637154,0.0004224,84259.0,84258.0,0.05358176]
[1740606637558,0.0004224,84259.0,84258.0,0.23160576]
[1740606637778,0.0004224,84259.0,84258.0,0.25160576]
[1740606638310,0.0004224,84259.0,84258.0,0.05358176]
[1740606638512,0.0004224,84259.0,84258.0,0.23160576]
[1740606638716,0.0004224,84259.0,84258.0,0.05358176]
[1740606638865,0.0004224,84259.0,84258.0,0.23160576]
[1740606639070,0.0004224,84259.0,84258.0,0.05358176]
[1740606639274,0.0004224,84259.0,84258.0,0.03358176]
[1740606639624,0.0004224,84259.0,84258.0,0.23160576]
[1740606639818,0.0009243,84271.0,84270.0,0.0389]
[1740606639961,0.1789213,84271.0,84270.0,0.05344085]
[1740606640162,0.0009243,84271.0,84270.0,0.05344085]
[1740606640365,0.0009243,84271.0,84270.0,0.57873985]
[1740606641668,0.0009243,84271.0,84270.0,0.40074085]
[1740606641845,0.0009243,84271.0,84270.0,0.57873985]
[1740606642049,0.1789213,84271.0,84270.0,0.38074085]
[1740606642632,0.1789213,84271.0,84270.0,0.3662]
[1740606642831,0.1789213,84271.0,84270.0,0.0189]
[1740606643436,0.1789213,84271.0,84270.0,0.0389]
[1740606643712,0.1789213,84271.0,84270.0,0.0189]
[1740606644242,0.0009243,84271.0,84270.0,0.0389]
[1740606644440,0.1789213,84271.0,84270.0,0.0389]
[1740606645277,0.0009243,84271.0,84270.0,0.0389]
[1740606645459,0.1789213,84271.0,84270.0,0.0389]
[1740606647976,0.1789213,84271.0,84270.0,0.0189]
[1740606648609,0.1789213,84271.0,84270.0,0.0389]
[1740606649257,0.474453,84308.0,84270.0,0.0389]
[1740606649258,0.0004232,84300.0,84289.0,0.25139985]
[1740606649859,0.0004232,84300.0,84283.0,0.564594]
[1740606649860,0.0044957,84291.0,84290.0,0.0389]
[1740606650266,0.0044957,84291.0,84290.0,0.236857]
[1740606650512,0.00490548,84291.0,84290.0,0.236857]
[1740606650645,0.00490548,84291.0,84290.0,0.25139785]
[1740606652921,0.00490548,84291.0,84290.0,0.57869785]
[1740606653700,0.00590548,84291.0,84290.0,0.58569785]
[1740606654213,0.00490548,84291.0,84290.0,0.57869785]
[1740606654411,0.00590548,84291.0,84290.0,0.58569785]
[1740606654811,0.00490548,84291.0,84290.0,0.59185785]
[1740606655017,0.00390548,84291.0,84290.0,0.59185785]
[1740606655235,0.00490548,84291.0,84290.0,0.59885785]
[1740606656837,0.00390548,84291.0,84290.0,0.57185785]
[1740606657010,0.00390548,84291.0,84290.0,0.59185785]
[1740606657305,0.00490548,84291.0,84290.0,0.59885785]
[1740606657820,0.00490548,84291.0,84290.0,1.15965785]
[1740606657821,0.00390548,84291.0,84290.0,1.15965785]
[1740606658034,0.00490548,84291.0,84290.0,1.16665785]
[1740606658475,0.0004232,84300.0,84299.0,0.236838]
[1740606658666,0.0004232,84300.0,84299.0,1.56292909]
[1740606658873,0.0827,84347.0,84302.0,0.27037185]
[1740606659071,0.365228,84343.0,84302.0,1.18219253]
[1740606659293,0.1281,84343.0,84324.0,0.255785]
[1740606659506,0.0825,84365.0,84324.0,0.255785]
[1740606659507,0.01893518,84344.0,84343.0,0.235745]
[1740606659631,0.01893518,84344.0,84343.0,0.25028585]
[1740606659848,0.01693518,84344.0,84343.0,0.25028585]
[1740606660063,0.01693518,84344.0,84343.0,0.23028585]
[1740606660269,0.01693518,84344.0,84343.0,0.25028585]
[1740606660486,0.01693518,84344.0,84343.0,0.22942676]
[1740606660685,0.01693518,84344.0,84343.0,0.24942676]
[1740606661106,0.01793518,84344.0,84343.0,0.07858176]
[1740606661326,0.01793518,84344.0,84343.0,0.25642676]
[1740606661676,0.01693518,84344.0,84343.0,0.24942676]
[1740606661877,0.01793518,84344.0,84343.0,0.25642676]
[1740606662491,0.01793518,84344.0,84343.0,0.27642676]
[1740606662870,0.01793518,84344.0,84343.0,0.07858176]
[1740606663070,0.01793518,84344.0,84343.0,0.22188591]
[1740606663192,0.01693518,84344.0,84343.0,0.05870042]
[1740606663388,0.01693518,84344.0,84343.0,0.03704091]
[1740606663596,0.01793518,84344.0,84343.0,0.04404091]
[1740606663826,0.19577818,84344.0,84343.0,0.04404091]
[1740606664221,0.27707818,84344.0,84343.0,0.01804091]
[1740606664486,0.32427818,84344.0,84343.0,0.02504091]
[1740606665038,0.32327818,84344.0,84343.0,0.00014091]
[1740606665335,0.177853,84339.0,84338.0,0.0179]
[1740606665535,0.177853,84339.0,84315.0,0.10637634]
[1740606665536,0.256357,84337.0,84336.0,0.0179]
[1740606666141,0.256357,84337.0,84330.0,0.019]
[1740606666142,0.177864,84334.0,84333.0,0.0179]
[1740606666716,0.177902,84316.0,84315.0,0.00013886]
[1740606666933,0.302902,84316.0,84315.0,0.00013886]
[1740606667968,0.303902,84316.0,84315.0,0.00713886]
[1740606668742,0.17791,84312.0,84311.0,0.10637634]
[1740606669058,0.17997918,84312.0,84311.0,0.10646677]
[1740606669272,0.46761177,84312.0,84311.0,0.02836677]
[1740606669405,0.40748924,84312.0,84270.0,0.0013122]
[1740606669611,0.177997,84271.0,84270.0,0.0013122]
[1740606670023,0.177997,84271.0,84270.0,0.0203122]
[1740606670491,0.0767,84289.0,84288.0,0.019]
[1740606670654,0.49194,84289.0,84288.0,0.019]
[1740606671056,0.49206291,84289.0,84288.0,0.019]
[1740606671265,0.49206291,84289.0,84288.0,0.018]
[1740606671672,0.00012291,84289.0,84270.0,0.0083122]
[1740606671841,0.09488172,84280.0,84276.0,0.018]
[1740606672044,0.177988,84275.0,84274.0,0.018]
[1740606672446,0.177997,84271.0,84270.0,0.0013122]
[1740606672645,0.18006618,84271.0,84270.0,0.0013122]
[1740606672868,0.19275153,84273.0,84270.0,0.0193122]
[1740606673075,0.00115249,84271.0,84270.0,0.0193122]
[1740606673551,0.17914949,84271.0,84270.0,0.0013122]
[1740606673758,0.17914949,84271.0,84270.0,0.0193122]
[1740606673956,0.177997,84271.0,84270.0,0.0193122]
[1740606674544,0.177997,84271.0,84270.0,0.0013122]
[1740606675170,0.1784712,84271.0,84270.0,0.0013122]
[1740606675300,0.3836513,84271.0,84270.0,0.0013122]
[1740606675503,0.38480379,84271.0,84270.0,0.0013122]
[1740606675955,0.43470379,84271.0,84270.0,0.0013122]
[1740606676103,0.43570379,84271.0,84270.0,0.0013122]
[1740606676723,0.43470379,84271.0,84270.0,0.0013122]
[1740606677402,0.54541074,84271.0,84270.0,0.0013122]
[1740606677654,0.43570379,84271.0,84270.0,0.0013122]
[1740606679705,0.43470379,84271.0,84270.0,0.0013122]
[1740606679938,0.09744085,84270.0,84250.0,0.018]
[1740606680107,0.09744085,84270.0,84203.0,0.0008442]
[1740606680108,0.178075,84234.0,84233.0,0.01415471]
[1740606681425,0.17819778,84234.0,84233.0,0.01415471]
[1740606682004,0.00012278,84234.0,84233.0,0.01415471]
[1740606682209,0.00012278,84234.0,84233.0,0.22677256]
[1740606682952,0.00112278,84234.0,84233.0,0.22677256]
[1740606683455,0.00012278,84234.0,84233.0,0.04869556]
[1740606683588,0.00112278,84234.0,84233.0,0.22677256]
[1740606684117,0.00012278,84234.0,84233.0,0.22677256]
[1740606684326,0.00112278,84234.0,84233.0,0.24677256]
[1740606684484,0.00112278,84234.0,84233.0,0.04869556]
[1740606684686,0.17919778,84234.0,84233.0,0.02869556]
[1740606684895,0.17819778,84234.0,84233.0,0.01415471]
[1740606685128,0.17819778,84234.0,84233.0,0.005549]
[1740606685344,0.17819778,84234.0,84233.0,0.01415471]
[1740606685549,0.178075,84234.0,84233.0,0.01415471]
[1740606685960,0.179075,84234.0,84233.0,0.01815471]
[1740606686414,0.178075,84234.0,84233.0,0.01415471]
[1740606686615,0.179075,84234.0,84233.0,0.01815471]
[1740606686835,0.179075,84234.0,84233.0,0.009549]
[1740606687028,0.179075,84234.0,84233.0,0.01899971]
[1740606687172,0.178075,84234.0,84233.0,0.006394]